[Event "SRB-ch Semifinal 2022"]
[Site "Paracin"]
[Date "2022.03.22"]
[Round "8.6"]
[White "Stankovic, Milos"]
[Black "Gajcin, Marina"]
[Result "1/2-1/2"]
[ECO "B30"]
[WhiteElo "2412"]
[BlackElo "2254"]
[Annotator "NA"]
[PlyCount "140"]
[EventDate "2022.03.17"]
[EventType "swiss"]
[EventCountry "SRB"]
[SourceTitle "playchess.com"]
[Source "ChessBase"]
[SourceQuality "1"]
[TimeControl "40/5400+30:1800+30"]

1. e4 {[%emt 0:01:13]} c5 {[%emt 0:00:19]} 2. Nc3 {[%emt 0:00:30]} Nc6 {[%emt 0:04:27]} 3. Bb5 {[%emt 0:01:27]} Nd4 {[%emt 0:00:55]} 4. Nf3 {[%emt 0:00:34]} e6 {[%emt 0:09:24]} 5. O-O {[%emt 0:04:12]} a6 {[%emt 0:04:34]} 6. Bd3 {[%emt 0:02:29]} Nxf3+ {[%emt 0:05:36]} 7. Qxf3 {[%emt 0:02:00]} d6 {[%emt 0:04:03]} 8. Re1 {[%emt 0:09:40]} Ne7 {[%emt 0:08:37]} 9. b3 {[%emt 0:07:00]} Nc6 {[%emt 0:04:33]} 10. Bb2 {[%emt 0:08:13]} Be7 {[%emt 0:07:16]} 11. Ne2 {[%emt 0:07:54]} e5 {[%emt 0:04:20]} 12. Bc4 {[%emt 0:04:07]} O-O {[%emt 0:00:34]} 13. c3 $11 {[%emt 0:00:06]} Be6 {[%emt 0:07:53]} 14. Bxe6 {[%emt 0:03:45]} fxe6 {[%emt 0:00:06]} 15. Qh3 {[%emt 0:00:19]} Qd7 {[%emt 0:04:22]} 16. d4 {[%emt 0:01:00]} exd4 {[%emt 0:05:32]} 17. cxd4 {[%emt 0:01:24]} cxd4 {[%emt 0:00:51]} 18. Nxd4 {[%emt 0:01:43]} Bf6 {[%emt 0:00:18]} 19. Rad1 {[%emt 0:01:13]} Nxd4 {[%emt 0:01:15]} 20. Bxd4 {[%emt 0:00:17]} Bxd4 {[%emt 0:03:27]} 21. Rxd4 {[%emt 0:01:23]} Rac8 {[%emt 0:02:21]} 22. Qd3 {[%emt 0:03:19]} Rc6 {[%emt 0:00:46]} 23. Rd1 {[%emt 0:01:44]} Qf7 {[%emt 0:03:16]} 24. Qg3 {[%emt 0:01:41]} d5 {[%emt 0:03:10]} 25. exd5 {[%emt 0:04:27]} exd5 {[%emt 0:00:03]} 26. h3 {[%emt 0:01:05]} Rc2 {[%emt 0:05:16]} 27. R1d2 {[%emt 0:02:44]} Rxd2 {[%emt 0:00:17]} 28. Rxd2 {[%emt 0:00:09]} Rd8 {[%emt 0:01:20]} 29. Qe5 {[%emt 0:02:48]} Qd7 {[%emt 0:03:05]} 30. Rd4 {[%emt 0:01:22]} Qd6 {[%emt 0:00:29]} 31. Qf5 {[%emt 0:00:55]} Qc6 {[%emt 0:01:07]} 32. g3 {[%emt 0:00:54]} Qc1+ {[%emt 0:00:49]} 33. Kg2 {[%emt 0:00:41]} Qc6 {[%emt 0:00:16]} 34. h4 {[%emt 0:00:37]} Qd7 {[%emt 0:01:28]} 35. Qf3 {[%emt 0:01:20]} Qf7 {[%emt 0:00:25]} 36. Qc3 {[%emt 0:01:17]} Qd7 {[%emt 0:02:14]} 37. Qc5 {[%emt 0:01:39]} Qd6 {[%emt 0:00:46]} 38. Qa5 {[%emt 0:01:19]} Rd7 {[%emt 0:00:38]} 39. Qc3 {[%emt 0:02:15]} Rd8 {[%emt 0:00:32]} 40. a4 {[%emt 0:00:22]} b6 {[%emt 0:03:03]} 41. Qd3 {[%emt 0:34:10]} a5 {[%emt 0:06:55]} 42. Qe3 {[%emt 0:00:00]} Qc6 {[%emt 0:06:14]} 43. Qe7 {[%emt 0:00:00]} Qf6 {[%emt 0:03:01]} 44. Qe3 {[%emt 0:00:00]} Qc6 {[%emt 0:00:35]} 45. h5 {[%emt 0:00:00]} h6 {[%emt 0:01:07]} 46. Qd3 {[%emt 0:00:00]} Re8 {[%emt 0:01:52]} 47. Qf5 {[%emt 0:00:00]} Rd8 {[%emt 0:00:49]} 48. Qe5 {[%emt 0:00:00]} Qd6 {[%emt 0:00:55]} 49. Qe3 {[%emt 0:00:00]} Qc6 {[%emt 0:00:30]} 50. Qd2 {[%emt 0:00:08]} Re8 {[%emt 0:00:51]} 51. Qf4 {[%emt 0:00:40]} Re4 {[%emt 0:05:14]} 52. Rxe4 {[%emt 0:00:08]} dxe4 {[%emt 0:00:01]} 53. Qe3 {[%emt 0:01:01]} Qe6 {[%emt 0:01:41]} 54. Kg1 {[%emt 0:05:17]} Qg4 {[%emt 0:00:44]} 55. Kg2 {[%emt 0:00:43]} Qe6 {[%emt 0:01:14]} 56. Qc3 {[%emt 0:02:11]} Qg4 {[%emt 0:00:13]} 57. Qc4+ {[%emt 0:00:42]} Kh7 {[%emt 0:02:32]} 58. Qf7 {[%emt 0:00:12]} Qe2 {[%emt 0:01:08]} 59. Kh3 {[%emt 0:03:19]} Qf1+ {[%emt 0:01:40]} 60. Kh2 {[%emt 0:02:08]} Qe2 {[%emt 0:00:08]} 61. Kg2 {[%emt 0:00:41]} Qg4 {[%emt 0:00:31]} 62. Qd5 {[%emt 0:00:24]} Qf3+ {[%emt 0:00:30]} 63. Kg1 {[%emt 0:00:25]} Qg4 {[%emt 0:01:01]} 64. Kf1 {[%emt 0:01:49]} Qf3 {[%emt 0:00:24]} 65. Kg1 {[%emt 0:00:27]} Qg4 {[%emt 0:00:04]} 66. Kg2 {[%emt 0:01:05]} Qf3+ {[%emt 0:00:13]} 67. Kf1 {[%emt 0:01:18]} Qh1+ {[%emt 0:00:13]} 68. Ke2 {[%emt 0:00:08]} Qf3+ {[%emt 0:00:03]} 69. Kf1 {[%emt 0:00:24]} Qh1+ {[%emt 0:00:03]} 70. Ke2 {[%emt 0:00:07]} Qf3+ {[%emt 0:00:04]} 1/2-1/2

[Event "SRB-ch Semifinal 2022"]
[Site "Paracin"]
[Date "2022.03.22"]
[Round "8.7"]
[White "Zlatanovic, Boroljub"]
[Black "Arsovic, Zoran"]
[Result "1-0"]
[ECO "A38"]
[WhiteElo "2338"]
[BlackElo "2360"]
[Annotator "ChessBase"]
[PlyCount "57"]
[EventDate "2022.03.17"]
[EventType "swiss"]
[EventCountry "SRB"]
[SourceTitle "playchess.com"]
[Source "ChessBase"]
[SourceQuality "1"]
[TimeControl "40/5400+30:1800+30"]

1. c4 {[%emt 0:00:03]} Nf6 {[%emt 0:00:22]} 2. g3 {[%emt 0:00:05]} c5 {[%emt 0:00:45]} 3. Bg2 {[%emt 0:00:11]} Nc6 {[%emt 0:00:36]} 4. Nc3 {[%emt 0:08:25]} g6 {[%emt 0:01:02]} 5. Nf3 {[%emt 0:00:30]} d6 {[%emt 0:03:14]} 6. d3 {[%emt 0:01:32]} Bg7 {[%emt 0:02:20]} 7. O-O {[%emt 0:01:26]} O-O {[%emt 0:00:40]} 8. a3 {[%emt 0:01:21]} Qd7 {[%emt 0:03:50]} 9. Rb1 {[%emt 0:04:50]} b6 {[%emt 0:00:11]} 10. b4 {[%emt 0:00:13]} Bb7 {[%emt 0:00:15]} 11. Bf4 {[%emt 0:06:39]} Rac8 {[%emt 0:09:07]} 12. Qd2 {[%emt 0:06:40]} Nd4 {[%emt 0:06:32]} 13. e4 {[%emt 0:06:42]} Nxf3+ {[%emt 0:13:44]} 14. Bxf3 {[%emt 0:00:01]} Ng4 {[%emt 0:13:59]} 15. Bxg4 {[%emt 0:04:42]} Qxg4 {[%emt 0:00:24]} 16. Bh6 {[%emt 0:00:37]} f5 {[%emt 0:04:35]} 17. Bxg7 {[%emt 0:01:08]} Kxg7 {[%emt 0:00:21]} 18. f3 {[%emt 0:02:05]} Qh5 {[%emt 0:00:51]} 19. bxc5 {[%emt 0:09:51]} dxc5 {[%emt 0:14:31]} 20. Nd5 {[%emt 0:01:55]} fxe4 {[%emt 0:14:24]} 21. Qb2+ {[%emt 0:00:38]} e5 {[%emt 0:00:28]} 22. g4 {[%emt 0:14:13]} Qg5 {[%emt 0:00:11]} 23. h4 {[%emt 0:00:20]} Qxh4 {[%emt 0:00:31]} 24. Qxe5+ {[%emt 0:01:29]} Kh6 {[%emt 0:04:10]} 25. Rb2 {[%emt 0:02:14]} Rce8 {[%emt 0:01:13]} 26. Qc7 {[%emt 0:01:30]} Rxf3 {[%emt 0:00:46]} 27. Rh2 {[%emt 0:01:51]} Rh3 {[%emt 0:04:02]} 28. Rxh3 {[%emt 0:00:48]} Qxh3 {[%emt 0:00:05]} 29. g5+ {[%emt 0:01:10]} 1-0

[Event "SRB-ch Semifinal 2022"]
[Site "Paracin"]
[Date "2022.03.22"]
[Round "8.8"]
[White "Blagojevic, Tijana"]
[Black "Zajic, Milan"]
[Result "1-0"]
[ECO "B31"]
[WhiteElo "2260"]
[BlackElo "2450"]
[Annotator "ChessBase"]
[PlyCount "69"]
[EventDate "2022.03.17"]
[EventType "swiss"]
[EventCountry "SRB"]
[SourceTitle "playchess.com"]
[Source "ChessBase"]
[SourceQuality "1"]
[TimeControl "40/5400+30:1800+30"]

1. e4 {[%emt 0:00:03]} c5 {[%emt 0:00:21]} 2. Nf3 {[%emt 0:00:11]} Nc6 {[%emt 0:00:11]} 3. Bb5 {[%emt 0:00:07]} g6 {[%emt 0:00:17]} 4. O-O {[%emt 0:00:11]} Bg7 {[%emt 0:00:10]} 5. c3 {[%emt 0:00:11]} Nf6 {[%emt 0:02:43]} 6. Re1 {[%emt 0:00:21]} O-O {[%emt 0:01:48]} 7. d4 {[%emt 0:00:30]} d5 {[%emt 0:02:56]} 8. e5 {[%emt 0:00:51]} Ne4 {[%emt 0:00:15]} 9. Be3 {[%emt 0:02:15]} Qb6 {[%emt 0:00:59]} 10. Bxc6 {[%emt 0:04:47]} bxc6 {[%emt 0:00:16]} 11. Qc1 {[%emt 0:02:37]} c4 {[%emt 1:26:04]} 12. Re2 {[%emt 0:27:39]} f6 {[%emt 0:00:00]} 13. b3 {[%emt 0:11:55]} cxb3 {[%emt 0:00:00]} 14. exf6 {[%emt 0:03:26]} exf6 {[%emt 0:00:00]} 15. Rb2 {[%emt 0:00:51]} g5 {[%emt 0:00:00]} 16. Rxb3 {[%emt 0:01:07]} Qc7 {[%emt 0:00:00]} 17. Nbd2 {[%emt 0:00:46]} h6 {[%emt 0:00:00]} 18. c4 {[%emt 0:03:07]} Qf7 {[%emt 0:00:00]} 19. cxd5 {[%emt 0:07:33]} cxd5 {[%emt 0:00:00]} 20. Rab1 {[%emt 0:00:39]} Re8 {[%emt 0:00:00]} 21. Nf1 {[%emt 0:03:55]} h5 {[%emt 0:00:00]} 22. h4 {[%emt 0:01:04]} g4 {[%emt 0:00:00]} 23. Ne1 {[%emt 0:00:44]} Ba6 {[%emt 0:00:00]} 24. Qa3 {[%emt 0:03:42]} Re6 {[%emt 0:00:00]} 25. Nd3 {[%emt 0:01:33]} Rae8 {[%emt 0:05:59]} 26. Nf4 {[%emt 0:00:37]} Bf8 {[%emt 0:00:30]} 27. Qa5 {[%emt 0:01:11]} Rd6 {[%emt 0:00:34]} 28. Rb8 {[%emt 0:05:51]} Rxb8 {[%emt 0:00:22]} 29. Rxb8 {[%emt 0:00:05]} Bc4 {[%emt 0:00:15]} 30. a4 {[%emt 0:01:26]} Rd7 {[%emt 0:01:14]} 31. Qb4 {[%emt 0:05:35]} Nd6 {[%emt 0:00:28]} 32. Ng3 {[%emt 0:00:05]} Rb7 {[%emt 0:00:32]} 33. Qxd6 {[%emt 0:00:07]} Rb1+ {[%emt 0:00:32]} 34. Kh2 {[%emt 0:00:12]} Rb6 {[%emt 0:00:18]} 35. Qd8 {[%emt 0:00:13]} 1-0

[Event "SRB-ch Semifinal 2022"]
[Site "Paracin"]
[Date "2022.03.22"]
[Round "8.9"]
[White "Kojovic, Dragan"]
[Black "Zivkovic, Nemanja"]
[Result "0-1"]
[ECO "B92"]
[WhiteElo "2298"]
[BlackElo "2380"]
[Annotator "NA"]
[PlyCount "114"]
[EventDate "2022.03.17"]
[EventType "swiss"]
[EventCountry "SRB"]
[SourceTitle "playchess.com"]
[Source "ChessBase"]
[SourceQuality "1"]
[TimeControl "40/5400+30:1800+30"]

1. e4 {[%emt 0:01:44]} c5 {[%emt 0:00:17]} 2. Nf3 {[%emt 0:00:21]} d6 {[%emt 0:00:15]} 3. d4 {[%emt 0:00:28]} cxd4 {[%emt 0:00:02]} 4. Nxd4 {[%emt 0:00:08]} Nf6 {[%emt 0:00:10]} 5. Nc3 {[%emt 0:00:07]} a6 {[%emt 0:00:11]} 6. Be2 {[%emt 0:01:11]} e5 {[%emt 0:01:46]} 7. Nb3 {[%emt 0:00:45]} Be7 {[%emt 0:01:45]} 8. Be3 {[%emt 0:00:36]} Be6 {[%emt 0:15:20]} 9. g4 {[%emt 0:11:22]} (9. Qd3 $142) 9... d5 {[%emt 0:31:23]} 10. exd5 {[%emt 0:00:58]} Nxd5 {[%emt 0:00:24]} 11. Nxd5 {[%emt 0:00:20]} Bxd5 {[%emt 0:01:24]} 12. O-O {[%emt 0:00:35]} Nc6 $11 {[%emt 0:06:31]} 13. c4 {[%emt 0:48:15]} Be6 {[%emt 0:12:49]} 14. Nc5 {[%emt 0:00:44]} Bxc5 {[%emt 0:01:13]} 15. Bxc5 {[%emt 0:00:25]} Qg5 {[%emt 0:08:26]} 16. Kh1 {[%emt 0:24:59]} e4 {[%emt 0:08:50]} 17. b4 {[%emt 0:03:03]} Rd8 {[%emt 0:02:33]} 18. Qc2 {[%emt 0:01:11]} f5 {[%emt 0:02:32]} 19. f4 {[%emt 0:02:48]} Qh4 {[%emt 0:00:47]} 20. Rad1 {[%emt 0:00:00]} Kf7 {[%emt 0:00:04]} 21. b5 {[%emt 0:00:00]} Ne7 {[%emt 0:00:33]} 22. Bb6 {[%emt 0:00:00]} Rxd1 {[%emt 0:00:51]} 23. Bxd1 {[%emt 0:00:00]} Rc8 {[%emt 0:00:24]} 24. Qg2 {[%emt 0:01:45]} Bxc4 {[%emt 0:00:37]} 25. Rg1 {[%emt 0:00:13]} Bd5 {[%emt 0:01:02]} 26. gxf5 {[%emt 0:00:26]} Nxf5 {[%emt 0:01:06]} 27. Bb3 {[%emt 0:00:14]} Bxb3 {[%emt 0:00:49]} 28. axb3 {[%emt 0:00:01]} Qe7 {[%emt 0:00:37]} 29. bxa6 {[%emt 0:00:45]} bxa6 {[%emt 0:00:01]} 30. Re1 {[%emt 0:01:03]} Re8 {[%emt 0:00:59]} 31. Rc1 {[%emt 0:00:46]} Kg8 {[%emt 0:00:29]} 32. Rc5 {[%emt 0:00:39]} Qf6 {[%emt 0:00:45]} 33. Qe2 {[%emt 0:00:35]} e3 {[%emt 0:01:15]} 34. Bc7 {[%emt 0:00:27]} Qd4 {[%emt 0:00:34]} 35. Re5 {[%emt 0:00:25]} Rxe5 {[%emt 0:00:10]} 36. Bxe5 {[%emt 0:00:03]} Qe4+ {[%emt 0:00:20]} 37. Kg1 {[%emt 0:00:03]} Qb1+ {[%emt 0:00:25]} 38. Kg2 {[%emt 0:00:05]} Qxb3 {[%emt 0:00:13]} 39. Qxa6 {[%emt 0:00:52]} Qd5+ {[%emt 0:00:11]} 40. Kg1 {[%emt 0:00:29]} Qd1+ {[%emt 0:00:03]} 41. Kg2 {[%emt 0:30:32]} Qg4+ {[%emt 0:30:13]} 42. Kf1 {[%emt 0:01:11]} h6 {[%emt 0:00:35]} 43. Qa2+ {[%emt 0:00:00]} Kh7 {[%emt 0:00:00]} 44. Qe2 {[%emt 0:00:00]} Qh3+ {[%emt 0:00:00]} 45. Kg1 {[%emt 0:00:00]} Qh4 {[%emt 0:00:00]} 46. Kg2 {[%emt 0:00:00]} Qd8 {[%emt 0:00:00]} 47. Kf1 {[%emt 0:00:00]} Qd5 {[%emt 0:00:00]} 48. Kg1 {[%emt 0:00:00]} Qe4 {[%emt 0:00:00]} 49. Qe1 {[%emt 0:00:00]} Qd3 {[%emt 0:00:00]} 50. Bc3 {[%emt 0:00:00]} Qe4 {[%emt 0:00:00]} 51. Be5 {[%emt 0:00:59]} Qf3 {[%emt 0:00:00]} 52. Qf1 {[%emt 0:00:53]} Qg4+ {[%emt 0:00:00]} 53. Kh1 {[%emt 0:00:20]} Kh8 {[%emt 0:00:00]} 54. Qc4 {[%emt 0:01:02]} Kh7 {[%emt 0:00:00]} 55. Qd3 {[%emt 0:00:50]} Kg6 {[%emt 0:00:00]} 56. Qa6+ {[%emt 0:00:21]} Kh5 {[%emt 0:00:00]} 57. Qb5 {[%emt 0:02:35]} Qd1+ {[%emt 0:00:00]} 0-1

[Event "SRB-ch Semifinal 2022"]
[Site "Paracin"]
[Date "2022.03.22"]
[Round "8.10"]
[White "Velikic, Adela"]
[Black "Todorovic, Nenad I"]
[Result "1-0"]
[ECO "B51"]
[WhiteElo "2258"]
[BlackElo "2311"]
[Annotator "NA"]
[PlyCount "71"]
[EventDate "2022.03.17"]
[EventType "swiss"]
[EventCountry "SRB"]
[SourceTitle "playchess.com"]
[Source "ChessBase"]
[SourceQuality "1"]
[TimeControl "40/5400+30:1800+30"]

1. e4 {[%emt 0:00:03]} c5 {[%emt 0:03:33]} 2. Nf3 {[%emt 0:00:06]} d6 {[%emt 0:00:05]} 3. Bb5+ {[%emt 0:00:06]} Nc6 {[%emt 0:00:14]} 4. O-O {[%emt 0:00:10]} Bd7 {[%emt 0:00:05]} 5. Re1 {[%emt 0:00:12]} Nf6 {[%emt 0:00:21]} 6. c3 {[%emt 0:00:13]} a6 {[%emt 0:00:07]} 7. Bf1 {[%emt 0:00:10]} Bg4 {[%emt 0:00:15]} 8. d4 {[%emt 1:33:30]} cxd4 {[%emt 0:08:56]} 9. cxd4 {[%emt 0:00:30]} e5 {[%emt 0:00:30]} 10. d5 {[%emt 0:00:00]} Nd4 {[%emt 1:21:24]} 11. Be3 {[%emt 0:01:00]} Bxf3 {[%emt 0:00:00]} 12. gxf3 {[%emt 0:00:00]} Nd7 {[%emt 0:01:00]} 13. Nd2 {[%emt 0:00:00]} (13. f4 $14) 13... Qh4 {[%emt 0:00:30]} (13... Rc8 $1 $11 {remains equal.}) 14. Nb3 {[%emt 0:01:30]} ({White should try} 14. f4 $16) 14... Be7 $14 {[%emt 0:00:30]} 15. Nxd4 {[%emt 0:00:00]} exd4 {[%emt 0:00:30]} 16. Qxd4 {[%emt 0:01:00]} Bf6 {[%emt 0:00:30]} 17. Qd2 {[%emt 0:00:30]} g5 {[%emt 0:00:30]} 18. Bg2 {[%emt 0:00:00]} Be5 {[%emt 0:00:00]} 19. h3 {[%emt 0:01:00]} Rg8 {[%emt 0:01:00]} 20. Kf1 {[%emt 0:00:30]} Nf6 {[%emt 0:00:30]} 21. Rac1 {[%emt 0:00:30]} Nh5 {[%emt 0:00:30]} 22. Rc7 {[%emt 0:00:00]} Nf4 {[%emt 0:00:00]} 23. Qc2 {[%emt 0:01:00]} Nxg2 {[%emt 0:01:00]} 24. Kxg2 {[%emt 0:00:30]} h5 {[%emt 0:00:30]} 25. Rh1 {[%emt 0:00:30]} Kf8 {[%emt 0:00:30]} 26. Rxb7 {[%emt 0:00:30]} Kg7 {[%emt 0:00:00]} 27. Qc7 {[%emt 0:00:00]} Kh8 {[%emt 0:00:00]} 28. Qd7 {[%emt 0:00:00]} Rg6 {[%emt 0:00:00]} 29. Kf1 {[%emt 0:00:29]} g4 {[%emt 0:00:22]} 30. fxg4 {[%emt 0:00:48]} hxg4 {[%emt 0:00:04]} 31. Qf5 {[%emt 0:01:13]} g3 {[%emt 0:02:34]} 32. Rg1 {[%emt 0:00:00]} Rag8 {[%emt 0:00:00]} 33. Rxf7 {[%emt 0:00:26]} g2+ {[%emt 0:00:18]} 34. Ke2 {[%emt 0:00:14]} Bxb2 {[%emt 0:00:17]} 35. f3 {[%emt 0:00:35]} Bf6 {[%emt 0:00:45]} 36. Rxf6 {[%emt 0:01:15]} 1-0

[Event "SRB-ch Semifinal 2022"]
[Site "Paracin"]
[Date "2022.03.22"]
[Round "8.12"]
[White "Dimitrijevic, Andjela"]
[Black "Manakova, Maria"]
[Result "0-1"]
[ECO "B23"]
[WhiteElo "1875"]
[BlackElo "2257"]
[Annotator "NA"]
[PlyCount "68"]
[EventDate "2022.03.17"]
[EventType "swiss"]
[EventCountry "SRB"]
[SourceTitle "playchess.com"]
[Source "ChessBase"]
[SourceQuality "1"]
[TimeControl "40/5400+30:1800+30"]

1. e4 {[%emt 0:00:01]} c5 {[%emt 0:02:29]} 2. Nc3 {[%emt 0:01:21]} Nc6 {[%emt 0:00:39]} 3. Bb5 {[%emt 0:01:30]} Nd4 {[%emt 0:00:26]} 4. Nf3 {[%emt 0:00:55]} a6 {[%emt 0:00:09]} 5. Bd3 {[%emt 0:01:18]} Nc6 {[%emt 0:01:26]} 6. O-O {[%emt 0:02:24]} d6 {[%emt 0:00:18]} 7. a3 {[%emt 0:01:39]} g6 {[%emt 0:03:24]} 8. Rb1 {[%emt 0:01:43]} Bg7 {[%emt 0:08:05]} 9. b4 {[%emt 0:02:12]} cxb4 {[%emt 0:01:40]} 10. axb4 {[%emt 0:00:47]} Nf6 {[%emt 0:00:36]} 11. b5 {[%emt 0:19:06]} axb5 {[%emt 0:00:28]} 12. Bxb5 {[%emt 0:00:26]} O-O {[%emt 0:00:24]} 13. Re1 $11 {[%emt 0:26:54]} e5 {[%emt 0:10:42]} 14. d4 {[%emt 0:07:24]} Nxd4 {[%emt 0:03:04]} 15. Nxd4 {[%emt 0:09:07]} exd4 {[%emt 0:00:15]} 16. Na4 {[%emt 0:02:47]} Bd7 {[%emt 0:05:37]} 17. Qxd4 {[%emt 0:02:13]} Ng4 {[%emt 0:05:41]} 18. Qb4 {[%emt 0:08:37]} Bxb5 {[%emt 0:02:04]} 19. Qxb5 {[%emt 0:01:15]} Qh4 {[%emt 0:01:13]} 20. Bb2 {[%emt 0:00:27]} Qxf2+ {[%emt 0:01:22]} 21. Kh1 {[%emt 0:00:08]} Qf4 {[%emt 0:00:09]} 22. Kg1 {[%emt 0:01:41]} Qxh2+ {[%emt 0:00:23]} 23. Kf1 {[%emt 0:00:09]} Qh1+ {[%emt 0:00:12]} 24. Ke2 {[%emt 0:00:07]} Qxg2+ {[%emt 0:00:05]} 25. Kd1 {[%emt 0:00:38]} Nf2+ {[%emt 0:00:15]} 26. Ke2 {[%emt 0:00:27]} Nxe4+ {[%emt 0:00:25]} 27. Ke3 {[%emt 0:00:11]} Rfe8 {[%emt 0:05:44]} 28. Kd3 {[%emt 0:01:54]} Qd2+ {[%emt 0:01:33]} 29. Kc4 {[%emt 0:00:12]} Rec8+ {[%emt 0:00:23]} 30. Kb3 {[%emt 0:00:27]} Qxc2+ {[%emt 0:00:06]} 31. Ka3 {[%emt 0:00:06]} Nc5 {[%emt 0:01:50]} 32. Bxg7 {[%emt 0:01:49]} Rxa4+ {[%emt 0:00:05]} 33. Qxa4 {[%emt 0:00:12]} Qxa4+ {[%emt 0:00:04]} 34. Kb2 {[%emt 0:00:09]} Nd3# {[%emt 0:00:03]} 0-1

[Event "SRB-ch Semifinal 2022"]
[Site "Paracin"]
[Date "2022.03.22"]
[Round "8.13"]
[White "Drljevic, Ljilja"]
[Black "Bojicic, Andjela"]
[Result "1-0"]
[ECO "B08"]
[WhiteElo "2217"]
[BlackElo "2152"]
[Annotator "NA"]
[PlyCount "127"]
[EventDate "2022.03.17"]
[EventType "swiss"]
[EventCountry "SRB"]
[SourceTitle "playchess.com"]
[Source "ChessBase"]
[SourceQuality "1"]
[TimeControl "40/5400+30:1800+30"]

1. e4 {[%emt 0:00:02]} g6 {[%emt 0:00:20]} 2. d4 {[%emt 0:00:09]} Bg7 {[%emt 0:00:06]} 3. Nc3 {[%emt 0:00:10]} d6 {[%emt 0:00:14]} 4. Nf3 {[%emt 0:01:42]} Nf6 {[%emt 0:01:08]} 5. Bg5 {[%emt 0:00:47]} O-O {[%emt 0:02:01]} 6. Qd2 {[%emt 0:00:25]} c6 {[%emt 0:07:06]} 7. Bh6 {[%emt 0:04:34]} b5 {[%emt 0:10:38]} 8. Bd3 {[%emt 0:05:10]} (8. Bxg7 $14 Kxg7 9. a3) 8... Bg4 {[%emt 0:15:01]} 9. h4 {[%emt 0:06:06]} Bxf3 $14 {[%emt 0:11:25]} 10. gxf3 {[%emt 0:00:40]} e5 {[%emt 0:03:48]} 11. Ne2 {[%emt 0:58:54]} Nh5 {[%emt 0:08:40]} 12. Bg5 {[%emt 0:04:01]} Qe8 {[%emt 0:19:48]} 13. c3 {[%emt 0:07:09]} Nd7 {[%emt 0:08:19]} 14. O-O-O {[%emt 0:03:36]} Nb6 {[%emt 0:02:54]} 15. Rdg1 {[%emt 0:02:03]} Qe6 {[%emt 0:01:33]} 16. Kb1 {[%emt 0:01:06]} a5 {[%emt 0:00:22]} 17. Bh6 {[%emt 0:00:57]} b4 {[%emt 0:01:47]} 18. cxb4 {[%emt 0:01:21]} axb4 {[%emt 0:00:39]} 19. b3 {[%emt 0:00:28]} c5 {[%emt 0:01:50]} 20. d5 {[%emt 0:00:36]} Qe7 {[%emt 0:00:32]} 21. Rg4 {[%emt 0:00:30]} c4 {[%emt 0:00:59]} 22. bxc4 {[%emt 0:00:22]} Bxh6 {[%emt 0:00:49]} 23. Qxh6 {[%emt 0:00:02]} Qa7 {[%emt 0:00:07]} 24. Nc1 {[%emt 0:00:27]} b3 {[%emt 0:01:18]} 25. axb3 {[%emt 0:00:46]} Nf4 {[%emt 0:00:56]} 26. Rxf4 {[%emt 0:00:37]} exf4 {[%emt 0:00:10]} 27. h5 {[%emt 0:00:32]} Qa1+ {[%emt 0:00:07]} 28. Kc2 {[%emt 0:00:02]} Ra2+ {[%emt 0:00:54]} 29. Nxa2 {[%emt 0:01:04]} Qxh1 {[%emt 0:00:21]} 30. Qxf4 {[%emt 0:00:18]} Ra8 {[%emt 0:00:39]} 31. Kb2 {[%emt 0:00:39]} Qe1 {[%emt 0:00:49]} 32. Qe3 {[%emt 0:00:39]} Qa5 {[%emt 0:00:19]} 33. Nc1 {[%emt 0:00:19]} Nd7 {[%emt 0:00:19]} 34. f4 {[%emt 0:00:43]} Nc5 {[%emt 0:00:05]} 35. Bb1 {[%emt 0:00:28]} Qb4 {[%emt 0:01:22]} 36. Kc2 {[%emt 0:00:33]} Rb8 {[%emt 0:00:30]} 37. Qc3 {[%emt 0:00:18]} Qb6 {[%emt 0:00:18]} 38. h6 {[%emt 0:00:15]} Kf8 {[%emt 0:00:29]} 39. Qg7+ {[%emt 0:00:47]} Ke7 {[%emt 0:00:04]} 40. e5 {[%emt 0:00:39]} Ne4 {[%emt 0:00:57]} 41. exd6+ {[%emt 0:06:49]} Nxd6 {[%emt 0:00:18]} 42. Qe5+ {[%emt 0:04:05]} Kd7 {[%emt 0:02:21]} 43. Qe3 {[%emt 0:05:05]} Nxc4 {[%emt 0:05:07]} 44. bxc4 {[%emt 0:00:02]} Qxb1+ {[%emt 0:01:23]} 45. Kd1 {[%emt 0:00:14]} Qa1 {[%emt 0:10:11]} 46. c5 {[%emt 0:10:51]} Qa4+ {[%emt 0:03:53]} 47. Kd2 {[%emt 0:00:16]} Qa5+ {[%emt 0:04:29]} 48. Qc3 {[%emt 0:01:31]} Rb2+ {[%emt 0:06:20]} 49. Kd3 {[%emt 0:00:09]} Qb5+ {[%emt 0:00:39]} 50. Ke3 {[%emt 0:00:23]} Rb4 {[%emt 0:00:19]} 51. c6+ {[%emt 0:04:03]} Kc7 {[%emt 0:00:33]} 52. Qe5+ {[%emt 0:00:37]} Kb6 {[%emt 0:00:18]} 53. Nd3 {[%emt 0:01:45]} Rc4 {[%emt 0:00:51]} 54. Qb8+ {[%emt 0:00:28]} Ka6 {[%emt 0:00:05]} 55. Qa8+ {[%emt 0:00:33]} Kb6 {[%emt 0:00:05]} 56. Qb7+ {[%emt 0:00:58]} Ka5 {[%emt 0:00:04]} 57. Qxb5+ {[%emt 0:00:39]} Kxb5 {[%emt 0:00:04]} 58. Ne5 {[%emt 0:00:29]} Rc5 {[%emt 0:00:11]} 59. d6 {[%emt 0:00:30]} Rxc6 {[%emt 0:02:21]} 60. Nxf7 {[%emt 0:00:20]} Rc3+ {[%emt 0:00:12]} 61. Ke4 {[%emt 0:00:32]} Rc4+ {[%emt 0:00:16]} 62. Kd5 {[%emt 0:00:32]} Rc5+ {[%emt 0:00:52]} 63. Ke6 {[%emt 0:00:19]} Kc6 {[%emt 0:00:19]} 64. d7 {[%emt 0:01:24]} 1-0